Cogmind - Beta 9.1 @@@ ROGUE MODE // 2019.11.09 @ 20:31:48 Player: Fleshy Vegetable Bird Result: Destroyed by as-09657 with Assembled Heavy Rifle Performance ------------- Evolutions (0) 0 Regions Visited (2) 400 Robots Destroyed (34) 170 Value Destroyed (479) 479 Prototype IDs (2) 40 Alien Tech Used (0) 0 Bonus (-47) -47 TOTAL SCORE: 1042 Bonus ------- Friendly Fire -47 Cogmind --------- Core Integrity 0/250 Matter 300/300 Energy 100/100 System Corruption 0% Temperature Cool (0) Location -10/Mines Parts ------- Power (1) Propulsion (2) Utility (2) Large Storage Unit High-capacity Storage Unit Weapon (2) Inventory (18) Light Nuclear Core Wheel Hover Unit Hover Unit Hover Unit High-capacity Storage Unit Improved Terrain Scanner Medium Armor Plating Medium Armor Plating Hacking Suite Heavy EM Pulse Gun Improved Assault Rifle Improved Assault Rifle Mining Laser Plasma Cutter Peak State ------------ Power Light Ion Engine Propulsion Wheel Wheel Utility Large Storage Unit High-capacity Storage Unit Weapon Heavy EM Pulse Gun Heavy EM Pulse Gun Inventory Light Ion Engine Light Nuclear Core Hover Unit Hover Unit Hover Unit High-capacity Storage Unit Improved Terrain Scanner Medium Armor Plating Medium Armor Plating Hacking Suite Heavy EM Pulse Gun Heavy EM Pulse Gun Improved Assault Rifle Improved Assault Rifle Mining Laser Plasma Cutter [Rating: 12] Favorites ----------- Power Light Ion Engine Engine Light Ion Engine Propulsion Wheel Wheel Wheel Utility Large Storage Unit Storage Large Storage Unit Weapon Heavy EM Pulse Gun Energy Gun Heavy EM Pulse Gun Ballistic Gun Light Assault Rifle Special Weapon Plasma Cutter Build | -11 -10 -10 ------- Run | Scr Mat Min Slots Evolved . | . . . Power . | . . . Propulsion . | . . . Utility . | . . . Weapon . | . . . Parts Attached 25 | 7 15 3 Power 5 | 1 3 1 Engine 5 | 1 3 1 Core . | . . . Reactor . | . . . Propulsion 7 | 2 4 1 Treads . | . . . Leg . | . . . Wheel 7 | 2 4 1 Hover . | . . . Flight . | . . . Utility 4 | 2 2 . Device . | . . . Storage 4 | 2 2 . Processor . | . . . Hackware . | . . . Protection . | . . . Artifact . | . . . Weapon 9 | 2 6 1 Energy Gun 7 | 1 5 1 Energy Cannon . | . . . Ballistic Gun 1 | 1 . . Ballistic Cannon . | . . . Launcher . | . . . Special Weapon 1 | . 1 . Impact Weapon . | . . . Slashing Weapon . | . . . Piercing Weapon . | . . . Special Melee Weapon . | . . . Unidentified Prototypes . | . . . Parts Lost 9 | . 3 6 Power 2 | . 1 1 Propulsion 4 | . 2 2 Utility . | . . . Weapon 3 | . . 3 Highest Loss Streak 5 | . 1 5 Average Slot Usage (%) 98 | . 98 97 Engine 13 | . 13 13 Wheel 27 | . 27 27 Storage 28 | . 28 28 Energy Gun 27 | . 27 27 Naked Turns . | . . . Heaviest Build 57 | 16 57 57 Greatest Support 20 | 20 20 20 Greatest Overweight (x) 15 | . 5 15 Average Overweight (x) 1 | . 1 2 Largest Inventory Capacity 18 | 8 18 18 Average Capacity 14 | 6 13 18 Most Carried 16 | 6 15 16 Average Carried 11 | 2 10 15 Final Capacity 18 | 8 18 18 Final Carried 15 | 6 15 15 Class Distribution -------------------- 95% | Mutant 4% | Scavenger-Mutant Dominant Class ---------------- Mutant | -10/Materials Mutant | -10/Mines Resources | -11 -10 -10 ----------- Run | Scr Mat Min Matter Collected 445 | 245 170 30 Remotely . | . . . Salvage Created 1048 | 130 690 228 Parts 91 | 13 61 17 Haulers Intercepted 2 | . 2 . Recyclers Shooed 1 | . 1 . Parts Field Recycled . | . . . Retrieved Matter . | . . . Parts Self-Destructed . | . . . Prevented . | . . . Kills | -11 -10 -10 ------- Run | Scr Mat Min Combat Hostiles Destroyed 18 | . 11 7 Guns 15 | . 9 6 AOE 2 | . 1 1 Classes Destroyed 9 | 2 7 . Worker 2 | . 2 . Builder 2 | . 1 1 Tunneler 5 | 3 1 1 Hauler 2 | . 2 . Recycler 2 | 1 1 . Operator 1 | . 1 . Watcher 2 | . 2 . Swarmer 11 | . 6 5 Grunt 7 | . 5 2 Best Kill Streak 4 | 4 4 3 Combat Bots Only 3 | . 3 3 Max Kills in Single Turn 2 | 1 2 1 Gunslinging . | . . . Exploded 1 | . 1 1 Melee . | . . . Uniques/NPCs Destroyed . | . . . Combat | -11 -10 -10 -------- Run | Scr Mat Min Damage Taken 971 | . 351 620 Core 265 | . 31 234 Absorbed by Shields . | . . . Core Remaining (%) 100 | 100 . . Volleys Fired 59 | 5 37 17 Largest 2 | 2 2 2 Hottest 90 | 70 90 90 Shots Fired 116 | 10 73 33 Gun 115 | 10 72 33 Cannon . | . . . Launcher . | . . . Special 1 | . 1 . Kinetic 5 | 5 . . Thermal 6 | 5 1 . Explosive . | . . . Electromagnetic 105 | . 72 33 Robot Hit Streak 12 | 7 12 7 Robot Miss Streak 6 | . 6 4 Penetration Max . | . . . Secondary Targets 1 | . . 1 Max Gunslinging Chain 1 | . . 1 Shots Hit Robots 62 | 7 38 17 Core Hits 37 | 5 21 11 Critical Hits 1 | . 1 . Critical Kills 1 | . 1 . Critical Parts Destroyed . | . . . Melee Attacks . | . . . Impact . | . . . Slashing . | . . . Piercing . | . . . Sneak Attacks . | . . . Combat Hostiles . | . . . Follow-up Attacks . | . . . Damage Inflicted 1288 | 79 832 377 Guns 1004 | 79 657 268 Cannons . | . . . Explosions 272 | . 163 109 Melee . | . . . Ramming . | . . . Kinetic 16 | 16 . . Thermal 347 | 63 175 109 Explosive . | . . . Electromagnetic 925 | . 657 268 Impact . | . . . Slashing . | . . . Piercing . | . . . Highest Corruption . | . . . Average Corruption . | . . . Corruption Purged . | . . . Overload Shots . | . . . Overflow Damage . | . . . Projectiles . | . . . Explosions . | . . . Melee . | . . . Knockbacks . | . . . Impact . | . . . Kinetic . | . . . Secondary . | . . . Self-Inflicted Damage 82 | . 51 31 Shots 3 | . 2 1 Rammed . | . . . Targets Rammed . | . . . Kicked . | . . . Crushed . | . . . Highest Temperature 210 | 40 144 210 Average Temperature 45 | 20 36 69 Received Heat Transfer 96 | . 81 15 Effects 1 | . . 1 Energy Bleed 1 | . . 1 Siege Activations . | . . . Robots Corrupted 1 | . 1 . Combat Hostiles 1 | . 1 . Parts Fried 4 | . 4 . Impact Corruptions . | . . . Robots Melted . | . . . Combat Hostiles . | . . . Parts Melted 1 | . 1 . Heat Transferred 572 | 185 237 150 Parts Sabotaged . | . . . Parts Stolen . | . . . Parts Stripped . | . . . Power Chain Reactions 4 | . 3 1 Missiles Intercepted . | . . . Alert | -11 -10 -10 ------- Run | Scr Mat Min Peak Influence 364 | 20 364 243 Average Influence 177 | 7 213 139 Maximum Alert Level 1 | . 1 1 Low Security (%) 59 | . . . Level 1 40 | . . . Level 2 . | . . . Level 3 . | . . . Level 4 . | . . . Level 5 . | . . . High Security . | . . . Max Security . | . . . Squads Dispatched 2 | . 2 . Investigation 2 | . 2 . Extermination . | . . . Reinforcement . | . . . Assault . | . . . Garrison . | . . . Intercept . | . . . Construction Impeded . | . . . Haulers Reinforced . | . . . Stealth | -11 -10 -10 --------- Run | Scr Mat Min Distress Signals . | . . . Communications Jammed . | . . . Distress Signals . | . . . Times Spotted 53 | . 23 30 Peak Tracking Total 14 | . 3 14 Tactical Retreats 3 | . 2 1 Traps | -11 -10 -10 ------- Run | Scr Mat Min Traps Triggered 2 | . 2 . Indirectly . | . . . Trap Hack Attempts . | . . . Triggered . | . . . Disarmed . | . . . Reprogrammed . | . . . Reused . | . . . Traps Extracted . | . . . Installed . | . . . Triggered . | . . . Machines | -11 -10 -10 ---------- Run | Scr Mat Min Machines Disabled 1 | . 1 . Max in Single Turn 1 | . 1 . Machines Sabotaged . | . . . Garrisons Compromised . | . . . Overloaded Fab Kills . | . . . Fab Network Shutdowns . | . . . Hacking | -11 -10 -10 --------- Run | Scr Mat Min Machines Accessed 9 | . 8 1 Terminals 9 | . 8 1 Fabricators . | . . . Repair Stations . | . . . Recycling Units . | . . . Scanalyzers . | . . . Garrison Access . | . . . Total Hacks 24 | . 23 1 Successful 16 | . 15 1 Failed 8 | . 8 . Catastrophic 1 | . 1 . Database Lockouts . | . . . Manual 21 | . 20 1 Terminals 24 | . 23 1 Fabricators . | . . . Repair Stations . | . . . Recycling Units . | . . . Scanalyzers . | . . . Garrison Access . | . . . Terminal Hacks 6 | . 5 1 Part Schematic 2 | . 1 1 Prototype ID Bank 1 | . 1 . Terminal Index 1 | . 1 . Locate Traps 1 | . 1 . Zone Layout 1 | . 1 . Fabricator Hacks . | . . . Repair Station Hacks . | . . . Recycling Unit Hacks . | . . . Scanalyzer . | . . . Garrison Access Hacks . | . . . Unauthorized Hacks 25 | . 25 . Terminals 10 | . 10 . Track 1 | . 1 . Assimilate 3 | . 3 . Botnet 5 | . 5 . Operators 1 | . 1 . Fabricators . | . . . Repair Stations . | . . . Recycling Units . | . . . Scanalyzers . | . . . Garrison Access . | . . . Data Cores Recovered . | . . . Used . | . . . Hacking Detections 4 | . 4 . Full Trace Events 1 | . 1 . Feedback Events . | . . . Feedback Blocked . | . . . Robot Schematics Acquired . | . . . Robots Built . | . . . Matter . | . . . Time . | . . . Total Robot Build Rating . | . . . Part Schematics Acquired 1 | . 1 . Parts Built . | . . . Matter . | . . . Time . | . . . Total Part Build Rating . | . . . Parts Repaired . | . . . Time . | . . . Parts Recycled . | . . . Recycled Matter . | . . . Retrieved Matter . | . . . Retrieved Components . | . . . Parts Scanalyzed . | . . . Part Schematics Acquired . | . . . Parts Damaged . | . . . Bothacking | -11 -10 -10 ------------ Run | Scr Mat Min Used RIF Installer . | . . . Robots Hacked . | . . . Non-combat . | . . . Combat . | . . . Robot Hacks Applied . | . . . Relay Couplers Released . | . . . Robots Rewired . | . . . Allies Hacked . | . . . Hacks Repelled . | . . . Allies | -11 -10 -10 -------- Run | Scr Mat Min Total Allies 1 | . 1 . Largest Group 1 | . 1 . Highest-Rated Group 10 | . 10 . Highest-Rated Ally 10 | . 10 . Total Orders . | . . . Ally Attacks . | . . . Total Damage . | . . . Kills . | . . . Allies Corrupted . | . . . Allies Melted . | . . . Intel | -11 -10 -10 ------- Run | Scr Mat Min Robot Analysis Total . | . . . Derelict Logs Recovered 2 | . . 2 Drone Launches . | . . . Drone Recoveries . | . . . Exploration | -11 -10 -10 ------------- Run | Scr Mat Min Turns Passed 1397 | 92 885 420 Spaces Moved 1109 | 72 708 329 Core 6 | 5 . 1 Treads . | . . . Legs . | . . . Wheels 1103 | 67 708 328 Hover . | . . . Flight . | . . . Fastest Speed 50 | 50 80 100 Average Speed 94 | 77 91 102 Slowest Speed 800 | 80 130 800 Overloaded Moves . | . . . Propulsion Burnouts . | . . . Robots Hopped . | . . . Cave-ins Triggered . | . . . Exploration Rate (%) 50 | 5 81 65 Regions Visited 2 Branch Regions 1 Pre-discovered Areas 1 | . . 1 Known Exits Taken . | . . . Unknown Exits Taken 2 | 1 1 . Scrap Searched 1 | . . 1 Spaces Dug . | . . . Terrain Destroyed 22 | . 11 11 Melee . | . . . Projectile . | . . . AOE 22 | . 11 11 Actions | -11 -10 -10 --------- Run | Scr Mat Min Total 1349 | 99 870 380 Wait 96 | 1 69 26 Move 1107 | 71 707 329 Hop . | . . . Pick Up 44 | 14 27 3 Fast Attach . | . . . Attach 11 | 7 3 1 Detach . | . . . Swap 14 | . 12 2 Drop 18 | 1 15 2 Fire 59 | 5 37 17 Melee . | . . . Ram . | . . . Kick . | . . . Crush . | . . . Escape Stasis . | . . . Rewire . | . . . Trap . | . . . Miscellaneous . | . . . Route ------- -11/Scrapyard -10/Materials (discovered 3 exits: [*Mat x2] / *Min) -10/Mines (discovered 2 exits: [*Mat] / *Exi) History --------- Turn | Location | Event 14 | -11/Scrapyard | Discovered new exit (range 15) 93 | -11/Scrapyard | Entered Materials 302 | -10/Materials | Discovered new exit (range 16) 318 | -10/Materials | Build established: Mutant 410 | -10/Materials | Discovered new exit (range 16) 516 | -10/Materials | Discovered new exit (range 6) 978 | -10/Materials | Entered Mines 1058 | -10/Mines | Identified exit to Exiles 1201 | -10/Mines | Discovered new exit (range 7) 1226 | -10/Mines | Learned location of Storage (-7) 1291 | -10/Mines | Deemed a non-threat by the Exiles lab entrance 1355 | -10/Mines | Assembled infested the area 1360 | -10/Mines | Assisted by a Guerilla fighting off Assembled 1378 | -10/Mines | Core integrity fell below 50% 1396 | -10/Mines | Core integrity fell below 20% 1398 | -10/Mines | Destroyed by as-09657 with Assembled Heavy Rifle Last Messages --------------- 01374_ WR-IYX(h) system corrupted by crushing effect. 01375_ WR-IYX(h) system terminally corrupted. 01378_ Hvy. EM Pulse Gun destroyed. 01379_ S-10 Pest destroyed. 01380_ Hvy. EM Pulse Gun destroyed. 01382_ Wheel destroyed. 01383_ as-21618 destroyed. 01383_ as-51189 destroyed. 01383_ as-68295 destroyed. 01386_ as-08594 destroyed. 01386_ as-45863 destroyed. 01388_ as-68728 destroyed. 01388_ as-87889 destroyed. 01388_ as-29600 destroyed. 01390_ as-49652 destroyed. 01390_ as-25994 destroyed. 01390_ as-42769 destroyed. 01391_ The unstable cave ceiling collapses. 01391_ Wheel destroyed. 01392_ U-05 Engineer builds a Wall. Map ----- +----------------------------------------------------+ | ?????????????????????????????????????????????????? | | ?????????????????????????????????????????????????? | | ?????????????????????????????????????????????????? | | ?????????????????????????????????????????????????? | | ?????????????????????????????????????????????????? | | ?????????????????????????????????????????????##### | | ?????????????????????????????????????????????# | | ?????????????????????????????????????????????# """ | | ?????????????????????????????????????????????# """ | | ?????????????????????????????????????????????# """ | | ?????????????????????????????????????????????# | | ?????????????????????????????????????????????# """ | | ?????????????????????????????????????????????# """ | | ??????????????????????????########???????????# """ | | ??????????????????????????? ### """ #???# | | ??????????????????????????????# =% """ ##### | | ??????????????????????????????# ### """ | | ??????????????????????????????# *### ##### | | ?????????????????????????????## ##?????????## ## | | ????????????????????????????? #?????###### #? | | ?????????????????##????????? ##?????# #? | | ?????????????????# ??????# a ##????# ####### | | ?????????????????# ????# #????# #???## | | ?????????????????# ### ##???# ##### ! | | ?????????????????# aaa #???# ## %% | | ??????????????????# @ ] #???# ## ! | | ??????????????????### ## = #????# ### | | ????????????????????## #?# = #????# ## ### | | ?????????????????????###?## #????# ## | | ?????????????????????????# #????# ## | | ?????????????????????????# #???## #### | | ?????????????????????????# ##??## ### | | ?????????????????????????# #?## | | ?????????????????????????## # ### | | ??????????????????????????## ## | | ???????????????????????????###!# | | ????????????????????#########!## ### | | ??????????????????# !%%=% ###### ## | | ????????????????????#########""! #??## #?## ## | | ??????????????????????????# # " #?## #??# #? | | ??????????????????????????##### "### #??# ## | | ??????????????????????????????# %## #??# | | ??????????????????????????????# #??# | | ??????????????????????????????# ##### #??##### | | ??????????????????????????????# #???## ##?????? | | ??????????????????????????????# #???## ##????? | | ??????????????????????????????# #??## ##???? | | ??????????????????????????????# #??# #???? | | ??????????????????????????????# #??# #???? | | ??????????????????????????????# #??# ##???? | +----------------------------------------------------+ Best States ------------- Heat Dissipation 25 Energy Generation 10 Energy Capacity 250 Matter Stores 300 Matter Capacity 300 Sight Range 16 Terrain Scan Density 10 Evasion (%) 44 Item Schematics ----------------- Hcp. Storage Unit | -10/Materials | Hacked Robot Schematics ------------------ None Fabricated ------------ Nothing Alien Tech Used ----------------- None Achievements -------------- None Challenges ------------ None Game ------ Seed SeismicThermalConverter Manual? 0 Play Time 00:14:45 Cumulative 163.3 hours Start 2019.11.09 @ 20:20:11 End 2019.11.09 @ 20:31:48 Sessions 1 Manual Loads 0 Difficulty Rogue Special Mode None Game No. 233 Rogue 233 Adventurer 0 Explorer 0 Win Type - Total 1 Types 1/0/0/0/0/0/0 Lore% 48 Gallery% 67 Achievement% 42 Wizard Run 0 Options --------- ASCII 0 Keyboard 0 Movement Numpad Keybinds 0 Fullscreen 1 Font 16/Terminus Map View 75x55 Tactical HUD 1 Map Filters NONE Filters NONE Steam 1 RUN: c19b0c0d-b627-4863-986a-3a1a866a826a